[Event "ETCC Open 2023"]
[Site "Budva"]
[Date "2023.11.14"]
[Round "4.7"]
[White "Petrov, Nikita"]
[Black "Pancevski, Filip"]
[Result "1-0"]
[ECO "E97"]
[WhiteElo "2567"]
[BlackElo "2441"]
[Annotator "ChessBase"]
[PlyCount "107"]
[EventDate "2023.11.10"]
[EventType "team-tourn"]
[EventCountry "MNE"]
[SourceTitle "playchess.com"]
[Source "ChessBase"]
[SourceQuality "1"]
[WhiteTeam "Montenegro"]
[BlackTeam "Macedonia"]
[WhiteTeamCountry "MNE"]
[BlackTeamCountry "MKD"]
[TimeControl "40/5400+30:1800+30"]

1. d4 {[%emt 0:00:04]} Nf6 {[%emt 0:00:14]} 2. c4 {[%emt 0:00:18]} g6 {[%emt 0:00:03]} 3. Nc3 {[%emt 0:00:30]} Bg7 {[%emt 0:00:05]} 4. e4 {[%emt 0:00:30]} d6 {[%emt 0:00:02]} 5. Nf3 {[%emt 0:00:24]} O-O {[%emt 0:00:03]} 6. Be2 {[%emt 0:00:12]} e5 {[%emt 0:00:14]} 7. O-O {[%emt 0:00:31]} Nc6 {[%emt 0:05:38]} 8. d5 {[%emt 0:00:12]} Ne7 {[%emt 0:00:02]} 9. b4 {[%emt 0:00:30]} a5 {[%emt 0:00:11]} 10. bxa5 {[%emt 0:00:32]} c5 {[%emt 1:28:58]} 11. a4 {[%emt 0:00:39]} Rxa5 {[%emt 0:00:08]} 12. Bd2 {[%emt 0:00:45]} Kh8 {[%emt 0:01:43]} 13. Ra3 {[%emt 0:02:57]} Ra6 {[%emt 1:27:49]} 14. g3 {[%emt 0:08:49]} Ne8 {[%emt 0:35:08]} 15. Qc1 {[%emt 0:08:56]} Ng8 {[%emt 0:02:06]} 16. Nh4 {[%emt 0:16:36]} Bh3 {[%emt 0:07:05]} 17. Re1 {[%emt 0:02:13]} Nef6 {[%emt 0:06:49]} 18. Rb3 {[%emt 0:07:08]} Bc8 {[%emt 0:00:38]} 19. Bg5 {[%emt 0:02:58]} Qe8 {[%emt 0:10:31]} 20. Bd1 {[%emt 0:09:28]} Qd7 {[%emt 0:02:05]} 21. Be2 {[%emt 0:05:10]} Qe8 {[%emt 0:00:10]} 22. Qb2 {[%emt 0:02:13]} Qd7 {[%emt 0:01:01]} 23. Rb6 {[%emt 0:30:25]} Ra8 {[%emt 0:04:53]} 24. Bf1 {[%emt 0:02:40]} Ne8 {[%emt 0:00:29]} 25. Nf3 {[%emt 0:03:48]} Qc7 {[%emt 0:03:46]} 26. Bd2 {[%emt 0:02:13]} Qd8 {[%emt 0:01:37]} 27. Ra1 {[%emt 0:01:31]} Ngf6 {[%emt 0:01:26]} 28. a5 {[%emt 0:06:48]} Nd7 {[%emt 0:10:26]} 29. Rb3 {[%emt 0:02:47]} Nc7 {[%emt 0:04:40]} 30. Na4 {[%emt 0:02:45]} Ra6 {[%emt 0:02:07]} 31. Qb1 {[%emt 0:03:17]} f5 {[%emt 0:00:53]} 32. Ng5 {[%emt 0:01:14]} f4 {[%emt 0:00:23]} 33. Ne6 {[%emt 0:01:24]} Nxe6 {[%emt 0:00:05]} 34. dxe6 {[%emt 0:00:02]} Nb8 {[%emt 0:00:40]} 35. Rxb7 {[%emt 0:01:05]} Bxe6 {[%emt 0:00:54]} 36. Qb5 {[%emt 0:00:53]} Bd7 {[%emt 0:00:35]} 37. Rxb8 {[%emt 0:00:19]} Qxb8 {[%emt 0:00:05]} 38. Qxd7 {[%emt 0:00:34]} Ra7 {[%emt 0:00:10]} 39. Qb5 {[%emt 0:00:18]} Qa8 {[%emt 0:00:08]} 40. Bd3 {[%emt 0:00:52]} Raf7 {[%emt 0:00:11]} 41. Be1 {[%emt 0:05:34]} h5 {[%emt 0:01:45]} 42. Nb6 {[%emt 0:02:22]} Qa7 {[%emt 0:05:01]} 43. Nd5 {[%emt 0:04:22]} fxg3 {[%emt 0:01:35]} 44. hxg3 {[%emt 0:00:43]} h4 {[%emt 0:04:04]} 45. Qb2 {[%emt 0:01:45]} Qd7 {[%emt 0:01:40]} 46. a6 {[%emt 0:06:58]} Kh7 {[%emt 0:02:19]} 47. Qe2 {[%emt 0:01:09]} Qh3 {[%emt 0:01:12]} 48. Rb1 {[%emt 0:07:52]} Rf3 {[%emt 0:06:13]} 49. Ne3 {[%emt 0:05:28]} Bh6 {[%emt 0:04:21]} 50. Nf5 {[%emt 0:00:55]} Rxd3 {[%emt 0:04:22]} 51. Rb7+ {[%emt 0:00:28]} Kh8 {[%emt 0:00:00]} 52. Qxd3 {[%emt 0:00:17]} gxf5 {[%emt 0:00:16]} 53. Qxd6 {[%emt 0:00:39]} Bg7 {[%emt 0:00:45]} 54. Qg6 {[%emt 0:00:28]} 1-0

[Event "ETCC Open 2023"]
[Site "Budva"]
[Date "2023.11.14"]
[Round "4.8"]
[White "Lazov, Toni"]
[Black "Blagojevic, Dragisa"]
[Result "1-0"]
[ECO "C55"]
[WhiteElo "2377"]
[BlackElo "2438"]
[Annotator "ChessBase"]
[PlyCount "83"]
[EventDate "2023.11.10"]
[EventType "team-tourn"]
[EventCountry "MNE"]
[SourceTitle "playchess.com"]
[Source "ChessBase"]
[SourceQuality "1"]
[WhiteTeam "Macedonia"]
[BlackTeam "Montenegro"]
[WhiteTeamCountry "MKD"]
[BlackTeamCountry "MNE"]
[TimeControl "40/5400+30:1800+30"]

1. e4 {[%emt 0:00:04]} e5 {[%emt 0:00:25]} 2. Bc4 {[%emt 0:00:14]} Nf6 {[%emt 0:00:15]} 3. d3 {[%emt 0:00:01]} Nc6 {[%emt 0:00:18]} 4. Nf3 {[%emt 0:00:08]} Be7 {[%emt 0:00:56]} 5. O-O {[%emt 0:00:07]} O-O {[%emt 0:00:04]} 6. Re1 {[%emt 0:00:07]} d6 {[%emt 0:00:27]} 7. a4 {[%emt 0:00:07]} Bg4 {[%emt 0:00:46]} 8. h3 {[%emt 0:00:15]} Bh5 {[%emt 0:00:06]} 9. c3 {[%emt 0:00:26]} d5 {[%emt 0:02:35]} 10. exd5 {[%emt 0:00:11]} Nxd5 {[%emt 0:00:05]} 11. a5 {[%emt 0:00:07]} Rb8 {[%emt 0:02:50]} 12. Nbd2 {[%emt 0:10:31]} f6 {[%emt 0:02:48]} 13. Ne4 {[%emt 0:08:51]} Bf7 {[%emt 0:05:32]} 14. d4 {[%emt 0:03:17]} exd4 {[%emt 0:06:29]} 15. Nxd4 {[%emt 0:01:50]} Ne5 {[%emt 0:09:48]} 16. Bb3 {[%emt 0:18:56]} Qd7 {[%emt 0:08:48]} 17. f4 {[%emt 0:07:45]} Nc6 {[%emt 0:12:43]} 18. Ba4 {[%emt 0:00:03]} Rfd8 {[%emt 0:01:45]} 19. a6 {[%emt 0:04:13]} Nb6 {[%emt 0:08:32]} 20. Nxc6 {[%emt 0:00:44]} bxc6 {[%emt 0:02:23]} 21. Qxd7 {[%emt 0:00:10]} Rxd7 {[%emt 0:10:18]} 22. Bxc6 {[%emt 0:00:18]} Rdd8 {[%emt 0:00:16]} 23. Be3 {[%emt 0:05:04]} Bd5 {[%emt 0:00:17]} 24. Bxd5+ {[%emt 0:01:17]} Rxd5 {[%emt 0:00:05]} 25. Red1 {[%emt 0:07:34]} Rbd8 {[%emt 0:01:55]} 26. Rxd5 {[%emt 0:00:05]} Rxd5 {[%emt 0:00:04]} 27. Kf1 {[%emt 0:05:31]} Kf7 {[%emt 0:00:14]} 28. Ke2 {[%emt 0:02:08]} Ke6 {[%emt 0:01:17]} 29. b4 {[%emt 0:09:13]} f5 {[%emt 0:06:06]} 30. Ng5+ {[%emt 0:03:19]} Bxg5 {[%emt 0:04:24]} 31. fxg5 {[%emt 0:00:01]} Kd7 {[%emt 0:00:18]} 32. Bxb6 {[%emt 0:07:18]} cxb6 {[%emt 0:00:07]} 33. Rd1 {[%emt 0:00:03]} Rxd1 {[%emt 0:03:15]} 34. Kxd1 {[%emt 0:00:04]} b5 {[%emt 0:01:25]} 35. Kd2 {[%emt 0:00:47]} Kc6 {[%emt 0:00:40]} 36. Kd3 {[%emt 0:00:35]} Kd5 {[%emt 0:00:24]} 37. g3 {[%emt 0:02:12]} h5 {[%emt 0:01:00]} 38. gxh6 {[%emt 0:03:30]} gxh6 {[%emt 0:00:12]} 39. h4 {[%emt 0:00:49]} h5 {[%emt 0:00:15]} 40. c4+ {[%emt 0:01:06]} bxc4+ {[%emt 0:00:30]} 41. Kc3 {[%emt 0:30:04]} Ke4 {[%emt 0:30:15]} 42. b5 {[%emt 0:00:31]} 1-0

[Event "ETCC Open 2023"]
[Site "Budva"]
[Date "2023.11.14"]
[Round "4.9"]
[White "Keinanen, Toivo"]
[Black "Carlsen, Magnus"]
[Result "0-1"]
[ECO "E06"]
[WhiteElo "2527"]
[BlackElo "2829"]
[Annotator "TA"]
[PlyCount "127"]
[EventDate "2023.11.10"]
[EventType "team-tourn"]
[EventCountry "MNE"]
[SourceTitle "playchess.com"]
[Source "ChessBase"]
[SourceQuality "1"]
[WhiteTeam "Finland"]
[BlackTeam "Norway"]
[WhiteTeamCountry "FIN"]
[BlackTeamCountry "NOR"]
[TimeControl "40/5400+30:1800+30"]

{[%evp 11,127,24,30,16,17,17,14,20,25,22,23,13,13,15,23,10,10,17,18,13,16,-3,0,-25,-27,-35,-27,-22,-36,-53,-20,-34,-29,-34,-34,-25,-37,-34,-8,-14,-27,-35,0,-67,-63,-70,-55,-69,-67,-60,-55,-57,-55,-87,-87,-91,-87,-89,-88,-89,-89,-90,-91,-95,-89,-87,-84,-165,-150,-248,-215,-227,-172,-152,-47,-26,0,0,0,-4,-4,-4,-8,-21,0,-98,-98,-98,-10,-98,-98,-98,-98,-98,-11,-98,-98,-105,-105,-112,-11,-591,-420,-422,-192,-479,-346,-29974,-29975,-29972,-29963,-6123,-5093,-29983,-29984,-29988,-29989,-29989]} 1. d4 {[%emt 0:00:01]} Nf6 {[%emt 0:03:38]} 2. c4 {[%emt 0:00:04]} e6 {[%emt 0:00:08]} 3. g3 {[%emt 0:00:02]} d5 {[%emt 1:28:14]} 4. Bg2 {[%emt 0:00:48]} Be7 {[%emt 0:00:33]} 5. Nf3 {[%emt 0:00:41]} O-O {[%emt 0:00:17]} 6. O-O {[%emt 0:00:10]} a5 {[%emt 0:00:04]} 7. Bf4 {[%emt 0:07:54] E06: Closed Catalan: Early deviations.} dxc4 {[%emt 0:11:18] [#]} 8. Qa4 $146 {[%emt 0:13:13]} ({Predecessor:} 8. Ne5 Nc6 9. Nxc6 bxc6 10. e4 c5 11. d5 exd5 12. exd5 Bd6 13. Qd2 Rb8 14. Nc3 {1-0 Papadopoulos,N (2109)-Hrisanthopoulos,D (2175) GRE-chT 36th 2008 (4.7)}) 8... Nd5 {[%emt 0:03:51]} 9. Qxc4 {[%emt 0:00:18] The position is equal.} Nxf4 {[%emt 0:01:22]} 10. gxf4 {[%emt 0:01:22]} Nd7 {[%emt 0:00:04][%cal Ob7b5,Bb8d7,Bd7f6,Bf6d5][%mdl 32]} 11. Rd1 {[%emt 0:07:08]} c6 {[%emt 0:01:38]} 12. Qc2 {[%emt 0:02:30]} Nf6 {[%emt 0:02:59]} 13. Nc3 {[%emt 0:02:22]} Nd5 {[%emt 0:00:26]} 14. e3 {[%emt 0:00:36]} Bd7 {[%emt 0:00:33]} 15. Ne5 {[%emt 0:05:08]} Be8 {[%emt 0:00:23]} 16. f5 {[%emt 0:02:52]} f6 {[%emt 0:01:29]} 17. Nf3 {[%emt 0:11:08]} exf5 {[%emt 0:04:18]} 18. Nxd5 {[%emt 0:01:17]} cxd5 {[%emt 0:00:08]} (18... Qxd5 19. Nh4 Qf7 20. Nxf5 $14 (20. Qxf5 g5 $11)) 19. Qxf5 {[%emt 0:00:24]} g6 {[%emt 0:02:33]} 20. Qd3 {[%emt 0:02:39]} a4 {[%emt 0:01:53]} 21. Rac1 {[%emt 0:03:27]} Kg7 {[%emt 0:03:09]} 22. Ne1 {[%emt 0:03:08]} Bd6 {[%emt 0:02:42]} 23. Rc2 {[%emt 0:02:01]} Qd7 {[%emt 0:04:57]} 24. Rdc1 {[%emt 0:01:50]} Bf7 {[%emt 0:01:03]} 25. Qe2 {[%emt 0:02:14]} Rac8 {[%emt 0:04:59]} 26. Nd3 {[%emt 0:03:29]} b6 {[%emt 0:01:25] Prevents Nc5} (26... Rc4 $5 {[%cal Rf8c8]}) 27. a3 {[%emt 0:01:58]} (27. Qd1 $11) 27... Rc4 $1 $15 {[%emt 0:01:00]} 28. Nb4 {[%emt 0:05:49]} Bxb4 {[%emt 0:01:15]} 29. Rxc4 {[%emt 0:00:45]} dxc4 {[%emt 0:00:08]} 30. axb4 {[%emt 0:00:01]} b5 {[%emt 0:00:59]} 31. Qd2 {[%emt 0:02:25]} g5 {[%emt 0:02:08]} 32. Qc3 {[%emt 0:03:37]} Rd8 {[%emt 0:03:27]} 33. Rd1 {[%emt 0:01:59]} Bd5 {[%emt 0:00:21]} (33... Qg4 $6 34. f3 Qe6 35. e4 $11) 34. f3 {[%emt 0:01:00]} Qd6 {[%emt 0:01:11]} 35. Rd2 {[%emt 0:05:19]} h5 {[%emt 0:00:56][%cal Bh7h5,Bh5h4,Bh4h3][%mdl 32]} 36. Rf2 {[%emt 0:02:05]} h4 {[%emt 0:04:15] Black is much more active.} 37. Bh3 {[%emt 0:01:25]} Be6 {[%emt 0:00:22]} 38. Bxe6 {[%emt 0:01:40]} Qxe6 $17 {[%emt 0:36:11][%mdl 4096] Endgame KQR-KQR} 39. Kf1 {[%emt 0:00:53]} (39. e4 $17) 39... h3 {[%emt 0:01:07]} 40. Ke2 {[%emt 0:01:40]} (40. e4 $17 {was necessary.}) 40... f5 $19 {[%emt 0:06:03]} 41. Kd2 {[%emt 0:09:07]} Qd5 {[%emt 0:11:31]} 42. Kc1 {[%emt 0:02:23]} f4 {[%emt 0:01:13]} (42... Kg6 $17 {Threatens to win with ...f4.} 43. Rf1 f4 44. exf4 Qxd4 45. Qxd4 Rxd4 46. fxg5 Kxg5 47. Rg1+ Kf5) 43. exf4 $15 {[%emt 0:09:06]} gxf4 {[%emt 0:06:03]} (43... Qxd4 {simplifies} 44. Qxd4+ Rxd4 45. fxg5 Rf4) 44. Qe1 $1 {[%emt 0:01:19] Hoping for Qe7+.} Kf7 {[%emt 0:10:23] Repels Qe7+} (44... Qxd4 $5 45. Qe7+ $8 Kh8 46. Qh4+ Kg8 47. Qg5+ Kh7 48. Qh4+ Kg6 49. Qg4+ Kf7 50. Qf5+ Qf6 51. Qxb5 (51. Qxh3 c3 $11) 51... Qe6 52. Qh5+ (52. Qxa4 $2 {is a self mate.} Qe1+ 53. Kc2 Qd1+ {[%mdl 64] Skewer} 54. Kc3 Qd3#) 52... Qg6 $11) 45. Qe4 {[%emt 0:03:27]} Qxe4 {[%emt 0:04:45]} 46. fxe4 $11 {[%emt 0:00:01] KR-KR} Rg8 {[%emt 0:04:02] ...Rg1+ is the strong threat.} 47. Rxf4+ {[%emt 0:00:00]} Ke6 {[%emt 0:00:25]} 48. Rf2 {[%emt 0:00:00]} (48. Rh4 $11) 48... Rg2 $17 {[%emt 0:10:35]} 49. Rc2 {[%emt 0:00:00]} Rg1+ {[%emt 0:02:41]} 50. Kd2 {[%emt 0:00:00]} Rg4 $1 {[%emt 0:00:12]} 51. Kc1 {[%emt 0:00:00]} Rxe4 {[%emt 0:00:56]} 52. Rc3 {[%emt 0:00:00]} Rh4 $1 {[%emt 0:00:28]} 53. Kb1 {[%emt 0:02:34]} (53. Rg3 $1 $11 {remains equal.}) 53... Kd5 {[%emt 0:00:15]} 54. Rg3 {[%emt 0:00:43]} Kxd4 {[%emt 0:00:17] And now ...Re4 would win.} 55. Kc2 {[%emt 0:00:34]} Re4 {[%emt 0:01:08]} (55... Ke4 $17 56. Kd2 (56. Rg5 Kf3 $17) 56... Rh8 57. Re3+ Kd4) 56. Rxh3 $2 {[%emt 0:00:03][%mdl 8192] This move loses the game for White.} (56. Kd2 $1 $11 {and White has nothing to worry.}) 56... Re2+ $19 {[%emt 0:00:28]} 57. Kb1 {[%emt 0:00:35] [#]} Re3 $1 {[%emt 0:00:15]} 58. Rh5 {[%emt 0:00:58] [#]} (58. Rh4+ {is the only way for White.} Kd3 59. Ka2) 58... a3 $1 {[%emt 0:00:57] White must now prevent ...Re2.} 59. Rg5 $2 {[%emt 0:00:32]} (59. Ka2 $19 axb2 60. Kxb2) 59... Rb3 {[%emt 0:01:52][%csl LRb2,LRb4]} 60. Rg4+ {[%emt 0:00:19]} Kd5 {[%emt 0:00:35]} 61. Rg5+ {[%emt 0:00:10]} Ke4 {[%emt 0:01:10]} 62. Rxb5 {[%emt 0:01:00]} Rxb2+ {[%emt 0:01:12]} 63. Kc1 {[%emt 0:00:18]} c3 {[%emt 0:00:14]} 64. Ra5 {[%emt 0:01:14] Weighted Error Value: White=0.47/Black=0.10 (very precise)} 0-1

[Event "ETCC Open 2023"]
[Site "Budva"]
[Date "2023.11.14"]
[Round "4.10"]
[White "Tari, Aryan"]
[Black "Sipila, Vilka"]
[Result "1-0"]
[ECO "C02"]
[WhiteElo "2620"]
[BlackElo "2429"]
[Annotator "ChessBase"]
[PlyCount "195"]
[EventDate "2023.11.10"]
[EventType "team-tourn"]
[EventCountry "MNE"]
[SourceTitle "playchess.com"]
[Source "ChessBase"]
[SourceQuality "1"]
[WhiteTeam "Norway"]
[BlackTeam "Finland"]
[WhiteTeamCountry "NOR"]
[BlackTeamCountry "FIN"]
[TimeControl "40/5400+30:1800+30"]

1. e4 {[%emt 0:01:51]} e6 {[%emt 0:00:05]} 2. d4 {[%emt 0:00:04]} d5 {[%emt 0:00:07]} 3. e5 {[%emt 0:00:02]} c5 {[%emt 0:00:07]} 4. c3 {[%emt 0:00:04]} Nc6 {[%emt 0:00:06]} 5. Nf3 {[%emt 0:00:25]} Bd7 {[%emt 0:00:11]} 6. Be2 {[%emt 0:01:46]} Nge7 {[%emt 0:00:15]} 7. O-O {[%emt 0:00:25]} cxd4 {[%emt 0:00:17]} 8. cxd4 {[%emt 0:00:17]} Nf5 {[%emt 0:00:07]} 9. Nc3 {[%emt 0:00:36]} a6 {[%emt 0:00:24]} 10. Bg5 {[%emt 0:11:44]} Be7 {[%emt 0:01:09]} 11. Bxe7 {[%emt 0:00:35]} Qxe7 {[%emt 0:00:09]} 12. Qd2 {[%emt 0:04:16]} O-O {[%emt 0:02:32]} 13. Rae1 {[%emt 0:05:22]} Rac8 {[%emt 0:17:14]} 14. Bd1 {[%emt 0:02:42]} Nh4 {[%emt 0:06:22]} 15. Nxh4 {[%emt 0:04:36]} Qxh4 {[%emt 0:00:49]} 16. f4 {[%emt 0:00:38]} f5 {[%emt 0:01:15]} 17. Na4 {[%emt 0:05:20]} Qd8 {[%emt 0:12:23]} 18. Nc5 {[%emt 0:02:51]} Qc7 {[%emt 0:02:19]} 19. b4 {[%emt 0:17:05]} Nb8 {[%emt 0:00:42]} 20. Be2 {[%emt 0:01:21]} b6 {[%emt 0:00:55]} 21. Nxa6 {[%emt 0:03:37]} Qc2 {[%emt 0:00:19]} 22. Rd1 {[%emt 0:05:05]} Qa4 {[%emt 0:03:27]} 23. Nxb8 {[%emt 0:02:46]} Rc2 {[%emt 0:00:18]} 24. Qe3 {[%emt 0:05:50]} Rxb8 {[%emt 0:00:36]} 25. a3 {[%emt 0:03:09]} Rbc8 {[%emt 0:03:46]} 26. Rc1 {[%emt 0:00:53]} Qc6 {[%emt 0:00:13]} 27. Ra1 {[%emt 0:03:45]} Rc3 {[%emt 0:13:23]} 28. Qd2 {[%emt 0:00:08]} Rc2 {[%emt 0:00:36]} 29. Qe3 {[%emt 0:01:12]} Rc3 {[%emt 0:02:01]} 30. Qd2 {[%emt 0:00:02]} Rc2 {[%emt 0:11:30]} 31. Qd3 {[%emt 0:00:08]} Qc3 {[%emt 0:04:44]} 32. Qxc3 {[%emt 0:02:34]} R8xc3 {[%emt 0:00:10]} 33. Rf3 {[%emt 0:00:15]} Rc7 {[%emt 0:00:07]} 34. Bd3 {[%emt 0:05:26]} Rb2 {[%emt 0:02:45]} 35. Rf2 {[%emt 0:00:18]} Rb3 {[%emt 0:00:07]} 36. Bf1 {[%emt 0:00:54]} Ba4 {[%emt 0:01:56]} 37. Rf3 {[%emt 0:04:09]} Rb2 {[%emt 0:00:18]} 38. Rf2 {[%emt 0:01:16]} Rb3 {[%emt 0:00:06]} 39. Rf3 {[%emt 0:00:31]} Rb2 {[%emt 0:00:05]} 40. Bd3 {[%emt 0:04:50]} Rd2 {[%emt 0:02:14]} 41. b5 {[%emt 0:02:08]} Kf8 {[%emt 0:06:38]} 42. Rb1 {[%emt 0:06:49]} h6 {[%emt 0:12:33]} 43. Rg3 {[%emt 0:04:50]} g5 {[%emt 0:13:59]} 44. Bf1 {[%emt 0:00:13]} g4 {[%emt 0:05:49]} 45. Rd3 {[%emt 0:02:09]} Ra2 {[%emt 0:00:04]} 46. Re3 {[%emt 0:01:19]} h5 {[%emt 0:01:32]} 47. h4 {[%emt 0:01:00]} Rcc2 {[%emt 0:01:22]} 48. Rb4 {[%emt 0:02:24]} Bxb5 {[%emt 0:04:32]} 49. Rxb5 {[%emt 0:01:00]} Rc1 {[%emt 0:00:03]} 50. Rxb6 {[%emt 0:01:03]} Raa1 {[%emt 0:00:04]} 51. Kh2 {[%emt 0:02:16]} Rxf1 {[%emt 0:00:11]} 52. Rc3 {[%emt 0:00:41]} Rac1 {[%emt 0:02:42]} 53. Rxc1 {[%emt 0:00:45]} Rxc1 {[%emt 0:00:02]} 54. Rxe6 {[%emt 0:00:32]} Rc4 {[%emt 0:00:04]} 55. Rf6+ {[%emt 0:00:39]} Ke7 {[%emt 0:00:04]} 56. Rxf5 {[%emt 0:00:30]} Rxd4 {[%emt 0:00:05]} 57. Kg3 {[%emt 0:00:56]} Rd3+ {[%emt 0:00:17]} 58. Kf2 {[%emt 0:00:01]} Rd2+ {[%emt 0:00:38]} 59. Ke3 {[%emt 0:00:20]} Rxg2 {[%emt 0:00:07]} 60. Rxh5 {[%emt 0:00:05]} g3 {[%emt 0:03:01]} 61. Kf3 {[%emt 0:01:10]} Rg1 {[%emt 0:00:12]} 62. Rh7+ {[%emt 0:00:51]} Kf8 {[%emt 0:00:26]} 63. Rd7 {[%emt 0:05:08]} g2 {[%emt 0:00:12]} 64. e6 {[%emt 0:01:32]} Re1 {[%emt 0:01:05]} 65. Kxg2 {[%emt 0:00:08]} Rxe6 {[%emt 0:00:05]} 66. Rxd5 {[%emt 0:00:03]} Ra6 {[%emt 0:00:55]} 67. Rd3 {[%emt 0:00:04]} Kg7 {[%emt 0:00:07]} 68. Kf3 {[%emt 0:00:18]} Kf6 {[%emt 0:00:16]} 69. Kg4 {[%emt 0:00:07]} Ra8 {[%emt 0:00:07]} 70. Rb3 {[%emt 0:01:03]} Rg8+ {[%emt 0:00:06]} 71. Kf3 {[%emt 0:00:04]} Ra8 {[%emt 0:00:26]} 72. h5 {[%emt 0:01:27]} Kf5 {[%emt 0:00:09]} 73. h6 {[%emt 0:01:25]} Kg6 {[%emt 0:00:37]} 74. Ke4 {[%emt 0:01:14]} Kxh6 {[%emt 0:00:23]} 75. Rg3 {[%emt 0:00:06]} Ra4+ {[%emt 0:02:07]} 76. Ke5 {[%emt 0:00:03]} Ra5+ {[%emt 0:00:07]} 77. Ke6 {[%emt 0:01:05]} Ra6+ {[%emt 0:00:05]} 78. Kd5 {[%emt 0:00:13]} Ra5+ {[%emt 0:00:20]} 79. Kc6 {[%emt 0:00:58]} Rf5 {[%emt 0:00:09]} 80. Rf3 {[%emt 0:00:41]} Ra5 {[%emt 0:00:09]} 81. Rg3 {[%emt 0:03:26]} Ra4 {[%emt 0:01:07]} 82. Rf3 {[%emt 0:00:31]} Ra8 {[%emt 0:00:09]} 83. Kb7 {[%emt 0:00:23]} Ra4 {[%emt 0:00:04]} 84. Kb6 {[%emt 0:00:34]} Ra8 {[%emt 0:00:03]} 85. Kb5 {[%emt 0:00:37]} Rb8+ {[%emt 0:00:05]} 86. Kc4 {[%emt 0:00:29]} Ra8 {[%emt 0:00:12]} 87. Kb3 {[%emt 0:00:33]} Kg6 {[%emt 0:00:15]} 88. f5+ {[%emt 0:00:18]} Kf6 {[%emt 0:00:03]} 89. a4 {[%emt 0:00:07]} Rb8+ {[%emt 0:00:08]} 90. Ka3 {[%emt 0:00:10]} Ra8 {[%emt 0:00:03]} 91. Rf1 {[%emt 0:00:27]} Re8 {[%emt 0:01:49]} 92. a5 {[%emt 0:00:19]} Re5 {[%emt 0:00:10]} 93. Kb4 {[%emt 0:00:07]} Re2 {[%emt 0:00:11]} 94. Rf3 {[%emt 0:00:44]} Re4+ {[%emt 0:01:14]} 95. Kb5 {[%emt 0:00:06]} Re1 {[%emt 0:00:07]} 96. a6 {[%emt 0:00:18]} Rb1+ {[%emt 0:00:28]} 97. Ka4 {[%emt 0:00:05]} Rb8 {[%emt 0:00:05]} 98. Ka5 {[%emt 0:00:10]} 1-0